fUST/lending_fUST_20250520
["ID","MTS","AMOUNT","RATE_DAILY","PERIOD"]
[361739871,1747741838086,-1291.35,0.00018082,2]
[361739872,1747741838096,-430.0,0.00018082,2]
[361739873,1747741838105,-574.37,0.00018082,2]
[361739874,1747741838117,-430.0,0.00018082,2]
[361739875,1747741838126,-722.59,0.00018082,2]
[361739877,1747741838136,-430.0,0.00018082,2]
[361739878,1747741838147,-430.0,0.00018082,2]
[361739879,1747741838157,-430.0,0.00018082,2]
[361739880,1747741838167,-585.94,0.00018082,2]
[361739881,1747741838176,-480.71,0.00018082,2]
[361739882,1747741838186,-430.0,0.00018082,2]
[361739883,1747741838195,-250.24252333,0.000181,2]
[361739884,1747741838205,-422.38731857,0.00018139,2]
[361739885,1747741838215,-10696.09944434,0.00018141,2]
[361739886,1747741838225,-601.759,0.00018356,2]
[361739887,1747741838235,-170.10021423,0.00018356,2]
[361739888,1747741838244,-238.56529833,0.00018356,2]
[361739889,1747741838254,-430.0,0.00018356,2]
[361739890,1747741838265,-430.0,0.00018356,2]
[361739891,1747741838274,-430.0,0.00018356,2]
[361739892,1747741838284,-430.0,0.00018356,2]
[361739893,1747741838293,-321.0,0.00018356,2]
[361739894,1747741838302,-1096.01,0.00018356,2]
[361739895,1747741838312,-1304.94,0.00018356,2]
[361739896,1747741838322,-2697.58,0.00018356,2]
[361739897,1747741838331,-491.7,0.00018356,2]
[361739898,1747741838340,-431.68,0.00018356,2]
[361739899,1747741838351,-430.0,0.00018356,2]
[361739900,1747741838360,-430.0,0.00018356,2]
[361739901,1747741838370,-1026.35,0.00018356,2]
[361739902,1747741838380,-489.73,0.00018356,2]
[361739903,1747741838390,-614.69,0.00018356,2]
[361739904,1747741838400,-430.0,0.00018356,2]
[361739905,1747741838413,-1052.22,0.00018356,2]
[361739906,1747741838423,-948.04,0.00018356,2]
[361739907,1747741838432,-430.0,0.00018356,2]
[361739908,1747741838442,-430.0,0.00018356,2]
[361739909,1747741838451,-537.58,0.00018356,2]
[361739911,1747741838461,-772.52,0.00018356,2]
[361739913,1747741838470,-430.0,0.00018356,2]
[361739914,1747741838480,-430.0,0.00018356,2]
[361739916,1747741838490,-1552.53,0.00018356,2]
[361739917,1747741838499,-430.0,0.00018356,2]
[361739918,1747741838510,-467.25,0.00018356,2]
[361739919,1747741838520,-430.0,0.00018356,2]
[361739920,1747741838531,-472.64,0.00018356,2]
[361739921,1747741838541,-430.0,0.00018356,2]
[361739922,1747741838551,-73.88131553,0.00018356,2]
[361739923,1747741839361,-483.06753868,0.00015621,2]
[361739924,1747741839393,-1125.80228843,0.00015621,2]
[361739925,1747741839404,-5097.412023,0.00016545,2]
[361739926,1747741839413,-441.16523897,0.00016712,2]
[361739927,1747741839424,-356.11868447,0.00018356,2]
[361739928,1747741839435,-2951.51,0.00018356,2]
[361739929,1747741839445,-430.0,0.00018356,2]
[361739930,1747741839455,-430.0,0.00018356,2]
[361739931,1747741839465,-1044.44,0.00018356,2]
[361739932,1747741839475,-825.63,0.00018356,2]
[361739933,1747741839485,-430.0,0.00018356,2]
[361739934,1747741839496,-430.0,0.00018356,2]
[361739935,1747741839506,-430.0,0.00018356,2]
[361739936,1747741839516,-634.64,0.00018356,2]
[361739937,1747741839527,-430.0,0.00018356,2]
[361739938,1747741839538,-513.09,0.00018356,2]
[361739939,1747741839548,-430.0,0.00018356,2]
[361739940,1747741839559,-849.91,0.00018356,2]
[361739941,1747741839570,-2123.73588248,0.00018356,2]
[361739942,1747741839582,-1730.71411752,0.00018356,2]
[361739943,1747741839592,-1291.35,0.00018356,2]
[361739944,1747741839604,-430.0,0.00018356,2]
[361739945,1747741839613,-574.37,0.00018356,2]
[361739946,1747741839624,-430.0,0.00018356,2]
[361739947,1747741839635,-722.59,0.00018356,2]
[361739948,1747741839645,-430.0,0.00018356,2]
[361739949,1747741839656,-430.0,0.00018356,2]
[361739950,1747741839666,-430.0,0.00018356,2]
[361739951,1747741839678,-585.94,0.00018356,2]
[361739952,1747741839687,-480.71,0.00018356,2]
[361739953,1747741839699,-430.0,0.00018356,2]
[361739954,1747741839710,-346.66237562,0.00018376,2]
[361739955,1747741839720,-653.64256234,0.00018376,2]
[361739956,1747741839731,-500.0,0.00018417,2]
[361739957,1747741839741,-18.85771647,0.00018424,7]
[361740031,1747741840500,-2200.0,0.00018417,2]
[361740033,1747741840512,-145.19658853,0.00018424,7]
[361740036,1747741840522,-500.0,0.00018429,2]
[361740038,1747741840533,-7685.80341147,0.00018452,2]
[361740057,1747741840753,-162.36878159,0.00018452,2]
[361740239,1747742187883,178.476334,0.00027397,120]
[361740247,1747742569709,2000.1,0.0002502,30]
[361740248,1747742615734,-154.7466949,0.00013699,2]
[361740249,1747742619488,-79.6820151,0.00013699,2]
[361740255,1747742739195,739.53571221,0.0002502,30]
[361740312,1747743032624,-174.524965,0.00015006,2]
[361740314,1747743032634,-300.0,0.00015156,2]
[361740316,1747743032644,-13559.7617831,0.00015157,2]
[361740318,1747743032653,-491.5002686,0.00015531,2]
[361740320,1747743032663,-164.476756,0.00015619,2]
[361740322,1747743032672,-681.5058629,0.00015838,2]
[361740324,1747743032682,-300.0,0.00016086,2]
[361740326,1747743032692,-161.6654459,0.00016338,2]
[361740328,1747743032701,-450.0,0.00016438,2]
[361740330,1747743032710,-450.0,0.00016438,2]
[361740332,1747743032720,-450.0,0.00016438,2]
[361740334,1747743032730,-450.0,0.00016438,2]
[361740336,1747743032740,-450.0,0.00016438,2]
[361740338,1747743032749,-450.0,0.00016438,2]
[361740340,1747743032759,-454.86700228,0.00016438,2]
[361740342,1747743032768,-250.0,0.00016438,2]
[361740344,1747743032778,-450.0,0.00016438,2]
[361740346,1747743032788,-450.0,0.00016438,2]
[361740348,1747743032797,-450.0,0.00016438,2]
[361740350,1747743032807,-450.0,0.00016438,2]
[361740352,1747743032817,-450.0,0.00016438,2]
[361740354,1747743032826,-450.0,0.00016438,2]
[361740356,1747743032835,-450.0,0.00016438,2]
[361740358,1747743032845,-430.0,0.00016438,2]
[361740360,1747743032854,-450.0,0.00016438,2]
[361740361,1747743032863,-439.30617727,0.00016438,2]
[361740363,1747743032872,-450.0,0.00016438,2]
[361740365,1747743032882,-450.0,0.00016438,2]
[361740367,1747743032892,-450.0,0.00016438,2]
[361740369,1747743032901,-450.0,0.00016438,2]
[361740371,1747743032911,-450.0,0.00016438,2]
[361740373,1747743032920,-450.0,0.00016438,2]
[361740375,1747743032931,-417.15856301,0.00016438,2]
[361740377,1747743032940,-250.0,0.00016438,2]
[361740379,1747743032950,-430.0,0.00016438,2]
[361740382,1747743032960,-450.0,0.00016438,2]
[361740383,1747743032970,-450.0,0.00016438,2]
[361740385,1747743032980,-450.0,0.00016438,2]
[361740387,1747743032989,-450.0,0.00016438,2]
[361740389,1747743032999,-450.0,0.00016438,2]
[361740391,1747743033009,-450.0,0.00016438,2]
[361740393,1747743033018,-450.0,0.00016438,2]
[361740395,1747743033029,-450.0,0.00016438,2]
[361740396,1747743033049,-450.0,0.00016438,2]
[361740398,1747743033061,-450.0,0.00016438,2]
[361740399,1747743033071,-450.0,0.00016438,2]
[361740401,1747743033081,-450.0,0.00016438,2]
[361740402,1747743033093,-450.0,0.00016438,2]
[361740403,1747743033103,-450.0,0.00016438,2]
[361740404,1747743033113,-450.0,0.00016438,2]
[361740405,1747743033124,-430.0,0.00016438,2]
[361740406,1747743033134,-500.19557937,0.00016438,2]
[361740407,1747743033145,-430.0,0.00016438,2]
[361740408,1747743033155,-430.0,0.00016438,2]
[361740409,1747743033166,-430.0,0.00016438,2]
[361740410,1747743033176,-740.09,0.00016438,2]
[361740411,1747743033187,-430.0,0.00016438,2]
[361740412,1747743033196,-430.0,0.00016438,2]
[361740413,1747743033206,-430.0,0.00016438,2]
[361740414,1747743033217,-450.0,0.00016438,2]
[361740415,1747743033228,-231.75893355,0.00016438,2]
[361740416,1747743033238,-430.0,0.00016438,2]
[361740417,1747743033248,-430.0,0.00016438,2]
[361740418,1747743033258,-400.0,0.00016438,2]
[361740419,1747743033268,-666.73,0.00016438,2]
[361740420,1747743033279,-562.95,0.00016438,2]
[361740421,1747743033290,-430.0,0.00016438,2]
[361740422,1747743033300,-430.0,0.00016438,2]
[361740423,1747743033310,-430.0,0.00016438,2]
[361740424,1747743033320,-1537.0,0.00016438,2]
[361740425,1747743033330,-430.0,0.00016438,2]
[361740426,1747743033340,-430.0,0.00016438,2]
[361740427,1747743033350,-430.0,0.00016438,2]
[361740428,1747743033360,-430.0,0.00016438,2]
[361740429,1747743033370,-1091.41,0.00016438,2]
[361740430,1747743033380,-430.0,0.00016438,2]
[361740431,1747743033390,-430.0,0.00016438,2]
[361740432,1747743033400,-450.0,0.00016438,2]
[361740433,1747743033410,-430.0,0.00016438,2]
[361740434,1747743033420,-430.0,0.00016438,2]
[361740435,1747743033430,-450.0,0.00016438,2]
[361740436,1747743033442,-218.09464831,0.00016438,2]
[361740437,1747743033453,-2063.48,0.00016438,2]
[361740438,1747743033463,-450.0,0.00016438,2]
[361740439,1747743033472,-430.0,0.00016438,2]
[361740440,1747743033482,-430.0,0.00016438,2]
[361740441,1747743033492,-430.0,0.00016438,2]
[361740442,1747743033502,-726.22,0.00016438,2]
[361740443,1747743033512,-430.0,0.00016438,2]
[361740444,1747743033522,-454.99217898,0.00016438,2]
[361740445,1747743033533,-726.13,0.00016438,2]
[361740446,1747743033543,-450.0,0.00016438,2]
[361740447,1747743033552,-430.0,0.00016438,2]
[361740448,1747743033563,-430.0,0.00016438,2]
[361740449,1747743033572,-490.27,0.00016438,2]
[361740450,1747743033582,-450.0,0.00016438,2]
[361740451,1747743033592,-460.6,0.00016438,2]
[361740452,1747743033602,-430.0,0.00016438,2]
[361740453,1747743033612,-430.0,0.00016438,2]
[361740454,1747743033622,-506.05,0.00016438,2]
[361740455,1747743033632,-430.0,0.00016438,2]
[361740456,1747743033642,-587.11,0.00016438,2]
[361740457,1747743033652,-2689.1,0.00016438,2]
[361740458,1747743033662,-879.73,0.00016438,2]
[361740459,1747743033671,-430.0,0.00016438,2]
[361740460,1747743033681,-430.0,0.00016438,2]
[361740461,1747743033692,-430.0,0.00016438,2]
[361740462,1747743033702,-432.03,0.00016438,2]
[361740463,1747743033712,-430.0,0.00016438,2]
[361740464,1747743033723,-430.0,0.00016438,2]
[361740465,1747743033732,-839.87,0.00016438,2]
[361740466,1747743033742,-430.0,0.00016438,2]
[361740467,1747743033752,-908.6,0.00016438,2]
[361740468,1747743033763,-228.66300593,0.00016438,2]
[361740469,1747743033773,-430.0,0.00016438,2]
[361740470,1747743033783,-400.0,0.00016438,2]
[361740471,1747743033792,-875.5,0.00016438,2]
[361740472,1747743033802,-749.43,0.00016438,2]
[361740473,1747743033813,-154.7466949,0.00016438,2]
[361740474,1747743033822,-1883.82,0.00016438,2]
[361740475,1747743033832,-450.0,0.00016438,2]
[361740476,1747743033842,-420.0,0.00016585,2]
[361740477,1747743033852,-500.0,0.00016711,2]
[361740478,1747743033862,-181.23584675,0.00016711,2]
[361740479,1747743033872,-596.04254821,0.00016711,2]
[361740480,1747743033882,-491.55498854,0.00016711,2]
[361740481,1747743033892,-500.0,0.00016711,2]
[361740482,1747743033902,-500.0,0.00016711,2]
[361740483,1747743033912,-500.0,0.00016711,2]
[361740484,1747743033922,-500.0,0.00016711,2]
[361740485,1747743033932,-500.0,0.00016711,2]
[361740486,1747743033943,-500.0,0.00016711,2]
[361740487,1747743033953,-500.0,0.00016711,2]
[361740488,1747743033962,-500.0,0.00016711,2]
[361740489,1747743033972,-500.0,0.00016711,2]
[361740490,1747743033982,-500.0,0.00016711,2]
[361740491,1747743033993,-500.0,0.00016711,2]
[361740492,1747743034003,-500.0,0.00016711,2]
[361740493,1747743034012,-459.08020608,0.00016711,2]
[361740494,1747743034023,-500.0,0.00016711,2]
[361740495,1747743034032,-500.0,0.00016711,2]
[361740496,1747743034042,-614.60459856,0.00016711,2]
[361740497,1747743034051,-500.0,0.00016711,2]
[361740498,1747743034061,-500.0,0.00016711,2]
[361740499,1747743034071,-500.0,0.00016711,2]
[361740500,1747743034080,-461.67163437,0.00016711,2]
[361740501,1747743034089,-265.34501806,0.00016712,2]
[361740502,1747743034104,-430.0,0.00016712,2]
[361740503,1747743034114,-430.0,0.00016712,2]
[361740504,1747743034123,-430.0,0.00016712,2]
[361740505,1747743034133,-375.74530684,0.00016712,2]
[361740506,1747743034143,-430.0,0.00016712,2]
[361740507,1747743034153,-740.09,0.00016712,2]
[361740508,1747743034163,-430.0,0.00016712,2]
[361740509,1747743034173,-430.0,0.00016712,2]
[361740510,1747743034182,-430.0,0.00016712,2]
[361740511,1747743034192,-430.0,0.00016712,2]
[361740512,1747743034202,-430.0,0.00016712,2]
[361740513,1747743034211,-666.73,0.00016712,2]
[361740514,1747743034222,-562.95,0.00016712,2]
[361740515,1747743034232,-430.0,0.00016712,2]
[361740516,1747743034242,-450.0,0.00016712,2]
[361740517,1747743034252,-430.0,0.00016712,2]
[361740518,1747743034262,-1537.0,0.00016712,2]
[361740519,1747743034271,-430.0,0.00016712,2]
[361740520,1747743034282,-430.0,0.00016712,2]
[361740521,1747743034292,-430.0,0.00016712,2]
[361740522,1747743034303,-430.0,0.00016712,2]
[361740523,1747743034313,-1091.41,0.00016712,2]
[361740524,1747743034323,-401.02063547,0.00016712,2]
[361740525,1747743034333,-430.0,0.00016712,2]
[361740526,1747743034343,-430.0,0.00016712,2]
[361740527,1747743034353,-430.0,0.00016712,2]
[361740528,1747743034363,-2063.48,0.00016712,2]
[361740529,1747743034373,-430.0,0.00016712,2]
[361740530,1747743034383,-430.0,0.00016712,2]
[361740531,1747743034393,-430.0,0.00016712,2]
[361740532,1747743034403,-726.22,0.00016712,2]
[361740533,1747743034412,-430.0,0.00016712,2]
[361740534,1747743034422,-726.13,0.00016712,2]
[361740535,1747743034433,-430.0,0.00016712,2]
[361740536,1747743034445,-430.0,0.00016712,2]
[361740537,1747743034455,-460.6,0.00016712,2]
[361740538,1747743034464,-430.0,0.00016712,2]
[361740539,1747743034474,-430.0,0.00016712,2]
[361740540,1747743034485,-506.05,0.00016712,2]
[361740541,1747743034494,-430.0,0.00016712,2]
[361740542,1747743034504,-587.11,0.00016712,2]
[361740543,1747743034514,-2689.1,0.00016712,2]
[361740544,1747743034525,-879.73,0.00016712,2]
[361740545,1747743034536,-430.0,0.00016712,2]
[361740546,1747743034546,-430.0,0.00016712,2]
[361740547,1747743034556,-430.0,0.00016712,2]
[361740548,1747743034566,-432.03,0.00016712,2]
[361740549,1747743034576,-430.0,0.00016712,2]
[361740550,1747743034586,-430.0,0.00016712,2]
[361740551,1747743034596,-839.87,0.00016712,2]
[361740552,1747743034606,-430.0,0.00016712,2]
[361740553,1747743034616,-908.6,0.00016712,2]
[361740554,1747743034626,-430.0,0.00016712,2]
[361740555,1747743034635,-875.5,0.00016712,2]
[361740556,1747743034645,-749.43,0.00016712,2]
[361740557,1747743034655,-1883.82,0.00016712,2]
[361740558,1747743034664,-890.33194551,0.00016876,2]
[361740559,1747743034674,-10153.57448647,0.000169,2]
[361740560,1747743034683,-157.41,0.00016976,3]
[361740561,1747743034693,-472.23,0.00016976,3]
[361740562,1747743034703,-500.0,0.00016985,2]
[361740563,1747743034713,-500.0,0.00016985,2]
[361740564,1747743034723,-500.0,0.00016985,2]
[361740565,1747743034942,-430.0,0.00016986,2]
[361740566,1747743034952,-490.32188887,0.00016986,2]
[361740567,1747743034962,-490.0,0.00016986,2]
[361740568,1747743034972,-430.0,0.00016986,2]
[361740569,1747743034982,-740.09,0.00016986,2]
[361740570,1747743034992,-430.0,0.00016986,2]
[361740571,1747743035002,-430.0,0.00016986,2]
[361740572,1747743035011,-430.0,0.00016986,2]
[361740573,1747743035020,-430.0,0.00016986,2]
[361740574,1747743035031,-430.0,0.00016986,2]
[361740575,1747743035040,-666.73,0.00016986,2]
[361740576,1747743035049,-562.95,0.00016986,2]
[361740577,1747743035060,-430.0,0.00016986,2]
[361740578,1747743035069,-430.0,0.00016986,2]
[361740579,1747743035079,-1537.0,0.00016986,2]
[361740580,1747743035089,-430.0,0.00016986,2]
[361740581,1747743035099,-430.0,0.00016986,2]
[361740582,1747743035111,-340.12,0.00016986,2]
[361740583,1747743035123,-430.0,0.00016986,2]
[361740584,1747743035134,-1091.41,0.00016986,2]
[361740585,1747743035145,-430.0,0.00016986,2]
[361740586,1747743035156,-430.0,0.00016986,2]
[361740587,1747743035168,-430.0,0.00016986,2]
[361740588,1747743035180,-2063.48,0.00016986,2]
[361740589,1747743035191,-430.0,0.00016986,2]
[361740590,1747743035203,-430.0,0.00016986,2]
[361740591,1747743035213,-430.0,0.00016986,2]
[361740592,1747743035223,-726.22,0.00016986,2]
[361740593,1747743035233,-726.13,0.00016986,2]
[361740594,1747743035243,-570.44,0.00016986,2]
[361740595,1747743035253,-430.0,0.00016986,2]
[361740596,1747743035264,-430.0,0.00016986,2]
[361740597,1747743035274,-460.6,0.00016986,2]
[361740598,1747743035285,-430.0,0.00016986,2]
[361740599,1747743035295,-430.0,0.00016986,2]
[361740600,1747743035306,-506.05,0.00016986,2]
[361740601,1747743035316,-430.0,0.00016986,2]
[361740602,1747743035326,-587.11,0.00016986,2]
[361740603,1747743035335,-2689.1,0.00016986,2]
[361740604,1747743035345,-879.73,0.00016986,2]
[361740605,1747743035355,-430.0,0.00016986,2]
[361740606,1747743035365,-430.0,0.00016986,2]
[361740607,1747743035375,-253.25,0.00016986,2]
[361740608,1747743035386,-432.03,0.00016986,2]
[361740609,1747743035397,-430.0,0.00016986,2]
[361740610,1747743035407,-430.0,0.00016986,2]
[361740611,1747743035419,-839.87,0.00016986,2]
[361740612,1747743035428,-430.0,0.00016986,2]
[361740613,1747743035441,-908.6,0.00016986,2]
[361740614,1747743035452,-430.0,0.00016986,2]
[361740615,1747743035462,-875.5,0.00016986,2]
[361740616,1747743035471,-749.43,0.00016986,2]
[361740617,1747743035482,-1883.82,0.00016986,2]
[361740618,1747743035492,-10153.57448641,0.0001721,2]
[361740619,1747743035502,-160.0,0.00017251,2]
[361740620,1747743035512,-422.65292303,0.00017251,2]
[361740621,1747743035523,-160.0,0.00017251,2]
[361740622,1747743035534,-212.38718278,0.00017251,2]
[361740623,1747743035545,-894.64583333,0.00017251,2]
[361740624,1747743035555,-160.0,0.00017251,2]
[361740625,1747743035566,-160.0,0.00017251,2]
[361740626,1747743035577,-160.0,0.00017251,2]
[361740627,1747743035588,-160.0,0.00017251,2]
[361740628,1747743035599,-12636.50182523,0.00017251,2]
[361740629,1747743035610,-430.0,0.0001726,2]
[361740630,1747743035620,-430.0,0.0001726,2]
[361740631,1747743035630,-740.09,0.0001726,2]
[361740632,1747743035639,-430.0,0.0001726,2]
[361740633,1747743035649,-430.0,0.0001726,2]
[361740634,1747743035658,-430.0,0.0001726,2]
[361740635,1747743035669,-430.0,0.0001726,2]
[361740636,1747743035680,-430.0,0.0001726,2]
[361740637,1747743035690,-666.73,0.0001726,2]
[361740638,1747743035701,-430.0,0.0001726,2]
[361740639,1747743035712,-562.95,0.0001726,2]
[361740640,1747743035721,-430.0,0.0001726,2]
[361740641,1747743035731,-1537.0,0.0001726,2]
[361740642,1747743035741,-430.0,0.0001726,2]
[361740643,1747743035751,-430.0,0.0001726,2]
[361740644,1747743035764,-430.0,0.0001726,2]
[361740645,1747743035774,-1091.41,0.0001726,2]
[361740646,1747743035784,-430.0,0.0001726,2]
[361740647,1747743035795,-430.0,0.0001726,2]
[361740648,1747743035806,-430.0,0.0001726,2]
[361740649,1747743035817,-2063.48,0.0001726,2]
[361740650,1747743035828,-430.0,0.0001726,2]
[361740651,1747743035838,-430.0,0.0001726,2]
[361740652,1747743035848,-430.0,0.0001726,2]
[361740653,1747743035858,-726.22,0.0001726,2]
[361740654,1747743035868,-726.13,0.0001726,2]
[361740655,1747743035878,-430.0,0.0001726,2]
[361740656,1747743035888,-430.0,0.0001726,2]
[361740657,1747743035898,-460.6,0.0001726,2]
[361740658,1747743035909,-430.0,0.0001726,2]
[361740659,1747743035919,-430.0,0.0001726,2]
[361740660,1747743035930,-506.05,0.0001726,2]
[361740661,1747743035941,-430.0,0.0001726,2]
[361740662,1747743035951,-587.11,0.0001726,2]
[361740663,1747743035962,-2689.1,0.0001726,2]
[361740664,1747743035972,-879.73,0.0001726,2]
[361740665,1747743035983,-430.0,0.0001726,2]
[361740666,1747743035992,-430.0,0.0001726,2]
[361740667,1747743036002,-432.03,0.0001726,2]
[361740668,1747743036011,-430.0,0.0001726,2]
[361740669,1747743036021,-430.0,0.0001726,2]
[361740670,1747743036032,-839.87,0.0001726,2]
[361740671,1747743036240,-430.0,0.0001726,2]
[361740672,1747743036251,-908.6,0.0001726,2]
[361740673,1747743036263,-430.0,0.0001726,2]
[361740674,1747743036273,-875.5,0.0001726,2]
[361740675,1747743036283,-749.43,0.0001726,2]
[361740676,1747743036293,-1883.82,0.0001726,2]
[361740677,1747743036302,-500.0,0.00017277,2]
[361740678,1747743036312,-404.0,0.00017441,2]
[361740679,1747743036321,-890.3319455,0.00017464,2]
[361740680,1747743036331,-207.4,0.00017492,2]
[361740681,1747743036341,-10153.57448641,0.00017521,2]
[361740682,1747743036351,-430.0,0.00017534,2]
[361740683,1747743036363,-430.0,0.00017534,2]
[361740684,1747743036374,-740.09,0.00017534,2]
[361740685,1747743036385,-430.0,0.00017534,2]
[361740686,1747743036395,-430.0,0.00017534,2]
[361740687,1747743036407,-430.0,0.00017534,2]
[361740688,1747743036416,-430.0,0.00017534,2]
[361740689,1747743036425,-430.0,0.00017534,2]
[361740690,1747743036435,-666.73,0.00017534,2]
[361740691,1747743036448,-430.0,0.00017534,2]
[361740692,1747743036458,-562.95,0.00017534,2]
[361740693,1747743036467,-430.0,0.00017534,2]
[361740694,1747743036477,-1537.0,0.00017534,2]
[361740695,1747743036487,-430.0,0.00017534,2]
[361740696,1747743036496,-430.0,0.00017534,2]
[361740697,1747743036506,-430.0,0.00017534,2]
[361740698,1747743036517,-1091.41,0.00017534,2]
[361740699,1747743036529,-430.0,0.00017534,2]
[361740700,1747743036539,-430.0,0.00017534,2]
[361740701,1747743036548,-430.0,0.00017534,2]
[361740702,1747743036558,-2063.48,0.00017534,2]
[361740703,1747743036568,-430.0,0.00017534,2]
[361740704,1747743036577,-430.0,0.00017534,2]
[361740705,1747743036586,-430.0,0.00017534,2]
[361740706,1747743036596,-726.22,0.00017534,2]
[361740707,1747743036606,-726.13,0.00017534,2]
[361740708,1747743036615,-430.0,0.00017534,2]
[361740709,1747743036625,-430.0,0.00017534,2]
[361740710,1747743036635,-460.6,0.00017534,2]
[361740711,1747743036650,-430.0,0.00017534,2]
[361740712,1747743036660,-430.0,0.00017534,2]
[361740713,1747743036671,-506.05,0.00017534,2]
[361740714,1747743036681,-430.0,0.00017534,2]
[361740715,1747743036690,-2689.1,0.00017534,2]
[361740716,1747743036700,-879.73,0.00017534,2]
[361740717,1747743036710,-587.11,0.00017534,2]
[361740718,1747743036719,-430.0,0.00017534,2]
[361740719,1747743036729,-430.0,0.00017534,2]
[361740720,1747743036738,-432.03,0.00017534,2]
[361740721,1747743036748,-430.0,0.00017534,2]
[361740722,1747743036758,-430.0,0.00017534,2]
[361740723,1747743036767,-839.87,0.00017534,2]
[361740724,1747743036778,-430.0,0.00017534,2]
[361740725,1747743036787,-908.6,0.00017534,2]
[361740726,1747743036797,-430.0,0.00017534,2]
[361740727,1747743036807,-875.5,0.00017534,2]
[361740728,1747743036818,-749.43,0.00017534,2]
[361740729,1747743036827,-1883.82,0.00017534,2]
[361740730,1747743036837,-420.0,0.00017586,2]
[361740731,1747743036847,-500.0,0.00017707,2]
[361740732,1747743036857,-500.0,0.00017707,2]
[361740733,1747743036867,-500.0,0.00017707,2]
[361740734,1747743036876,-500.0,0.00017707,2]
[361740735,1747743036886,-500.0,0.00017707,2]
[361740736,1747743036896,-500.0,0.00017707,2]
[361740737,1747743036906,-500.0,0.00017707,2]
[361740738,1747743036916,-500.0,0.00017707,2]
[361740739,1747743036925,-500.0,0.00017707,2]
[361740740,1747743036935,-500.0,0.00017707,2]
[361740741,1747743036944,-500.0,0.00017707,2]
[361740742,1747743036954,-500.0,0.00017707,2]
[361740743,1747743036964,-500.0,0.00017707,2]
[361740744,1747743036974,-500.0,0.00017707,2]
[361740745,1747743036984,-500.0,0.00017707,2]
[361740746,1747743036993,-500.0,0.00017707,2]
[361740747,1747743037003,-500.0,0.00017707,2]
[361740748,1747743037013,-500.0,0.00017707,2]
[361740749,1747743037022,-500.0,0.00017707,2]
[361740750,1747743037033,-500.0,0.00017707,2]
[361740751,1747743037042,-500.0,0.00017707,2]
[361740752,1747743037052,-283.59360811,0.00017707,2]
[361740753,1747743037062,-500.0,0.00017707,2]
[361740754,1747743037075,-500.0,0.00017707,2]
[361740755,1747743037084,-449.48712385,0.00017707,2]
[361740756,1747743037094,-500.0,0.00017707,2]
[361740757,1747743037104,-500.0,0.00017707,2]
[361740758,1747743037113,-500.0,0.00017707,2]
[361740759,1747743037123,-478.81992313,0.00017707,2]
[361740760,1747743037132,-24009.51698397,0.00017708,2]
[361740761,1747743037142,-150.154,0.00017714,2]